fUST/lending_fUST_20240401
["ID","MTS","AMOUNT","RATE_DAILY","PERIOD"]
[321191165,1711964832158,-495.61312409,0.00043018,2]
[321191347,1711965033537,-238.08050051,0.0003995,2]
[321191349,1711965033546,-152.10636294,0.00042631,44]
[321191351,1711965033556,-152.10636294,0.00042631,44]
[321191353,1711965033564,-152.10636294,0.00042631,44]
[321191355,1711965033573,-495.61312409,0.00043018,4]
[321191357,1711965033583,-220.23567541,0.00043019,2]
[321191423,1711965038315,-7880.20020057,0.00043019,2]
[321191424,1711965038374,-30436.72440535,0.00043019,2]
[321191425,1711965038383,-579.40402894,0.0004306,2]
[321191426,1711965038392,-579.40402893,0.0004472,2]
[321191427,1711965038402,-166.666666,0.00044938,2]
[321191428,1711965038411,-238.08050051,0.0004495,2]
[321191429,1711965038420,-8676.15065072,0.00045,120]
[321191430,1711965038431,-174.569356,0.00045769,2]
[321191431,1711965038440,-166.666666,0.00046164,2]
[321191432,1711965038449,-579.40402893,0.0004638,2]
[321191433,1711965038459,-166.666666,0.00047389,2]
[321191434,1711965038468,-160.0,0.00048,90]
[321191435,1711965038481,-579.40402893,0.00048039,2]
[321191436,1711965038495,-166.666666,0.00048614,2]
[321191437,1711965038508,-1431.22,0.000488,90]
[321191438,1711965038523,-3361.32360003,0.00049,120]
[321191439,1711965038535,-80434.81925607,0.00049,30]
[321191440,1711965038546,-579.40402893,0.00049699,2]
[321191441,1711965038559,-3938.21746549,0.000498,120]
[321191442,1711965038574,-588.0,0.000498,30]
[321191443,1711965038587,-166.666666,0.00049839,2]
[321191444,1711965038600,-3438.73211828,0.000499,2]
[321191445,1711965038614,-238.08050051,0.0004995,2]
[321191446,1711965038626,-39550.44574093,0.00049999,30]
[321191501,1711965040394,-503.01188397,0.00049999,30]
[321191775,1711965044479,-1393.46845103,0.00049999,30]
[321191776,1711965044489,-18259.53295975,0.0005,120]
[321191777,1711965044503,-61998.53003509,0.0005,120]
[321191778,1711965044512,-205.83558861,0.0005,20]
[321191779,1711965044521,-11018.61198166,0.0005,30]
[321191780,1711965044530,-229.37135426,0.0005,120]
[321191781,1711965044539,-292309.0692179,0.0005,120]
[321191782,1711965044547,-951.80353207,0.0005,60]
[321191783,1711965044556,-1000.0,0.0005,2]
[321191784,1711965044565,-893.3168724,0.0005,120]
[321191785,1711965044574,-65463.01542861,0.0005,2]
[321191786,1711965044583,-3945.81765004,0.0005,120]
[321191787,1711965044591,-7522.31529463,0.0005,120]
[321191788,1711965044601,-270.12046051,0.0005,30]
[321191789,1711965044611,-1769.50329925,0.0005,120]
[321191790,1711965044620,-11059.99624907,0.0005,4]
[321191791,1711965044630,-202.3118837,0.00050333,2]
[321191792,1711965044639,-202.3118837,0.00050333,2]
[321191793,1711965044649,-202.3118837,0.00050333,2]
[321191794,1711965044659,-200.6989629,0.00050333,2]
[321191795,1711965044669,-202.3118837,0.00050334,2]
[321191796,1711965044679,-202.3118837,0.00050334,2]
[321191797,1711965044689,-202.3118837,0.00050334,2]
[321191798,1711965044699,-202.3118837,0.00050334,2]
[321191799,1711965044708,-160.0,0.00050486,120]
[321191800,1711965044717,-166.666666,0.00051064,2]
[321191801,1711965044727,-154.30231638,0.00051539,60]
[321191802,1711965044736,-1315.29852753,0.00052,30]
[321191803,1711965044746,-150.84915085,0.00052231,2]
[321191804,1711965044755,-163.0,0.00053011,120]
[321191805,1711965044765,-301.6983017,0.00053109,4]
[321191806,1711965044775,-603.3966034,0.00054001,7]
[321191807,1711965044784,-809.98135055,0.00054793,4]
[321191808,1711965044794,-500.0,0.00054794,120]
[321191809,1711965044803,-503.19708029,0.00054794,120]
[321191810,1711965044813,-576.57389318,0.00054794,120]
[321191811,1711965044822,-500.0,0.00054794,120]
[321191812,1711965044832,-500.0,0.00054794,120]
[321191813,1711965044842,-500.0,0.00054794,120]
[321191814,1711965044851,-500.0,0.00054794,120]
[321191815,1711965044861,-500.0,0.00054794,120]
[321191816,1711965044870,-500.0,0.00054794,120]
[321191817,1711965044880,-500.0,0.00054794,120]
[321191818,1711965044889,-272.63168124,0.00054794,120]
[321191819,1711965044899,-500.0,0.00054794,120]
[321191820,1711965044908,-500.0,0.00054794,120]
[321191821,1711965044918,-227.48609946,0.00054794,120]
[321191822,1711965044927,-500.0,0.00054794,120]
[321191823,1711965044939,-500.0,0.00054794,120]
[321191824,1711965044948,-500.0,0.00054794,120]
[321191825,1711965044958,-500.0,0.00054794,120]
[321191826,1711965044967,-500.0,0.00054794,120]
[321191827,1711965044976,-404.82556555,0.00054794,120]
[321191828,1711965044987,-511.18517125,0.00054794,120]
[321191829,1711965044997,-502.57862396,0.00054794,120]
[321191830,1711965045006,-500.0,0.00054794,120]
[321191831,1711965045016,-500.66900747,0.00054794,120]
[321191832,1711965045026,-500.0,0.00054794,120]
[321191833,1711965045036,-501.15504627,0.00054794,120]
[321191834,1711965045046,-500.74034514,0.00054794,120]
[321191835,1711965045056,-455.32574208,0.00054794,120]
[321191836,1711965045066,-500.0,0.00054794,120]
[321191837,1711965045076,-152.03972185,0.00054794,120]
[321191838,1711965045086,-500.0,0.00054794,120]
[321191839,1711965045096,-168.84167167,0.00054794,120]
[321191840,1711965045107,-500.0,0.00054794,120]
[321191841,1711965045117,-500.0,0.00054794,120]
[321191842,1711965045126,-500.0,0.00054794,120]
[321191843,1711965045138,-500.0,0.00054794,120]
[321191844,1711965045148,-500.0,0.00054794,2]
[321191845,1711965045158,-500.0,0.00054794,120]
[321191846,1711965045168,-500.0,0.00054794,120]
[321191847,1711965045180,-500.0,0.00054794,120]
[321191848,1711965045198,-500.0,0.00054794,120]
[321191849,1711965045207,-500.0,0.00054794,120]
[321191850,1711965045217,-500.0,0.00054794,120]
[321191851,1711965045228,-500.0,0.00054794,120]
[321191852,1711965045239,-500.0,0.00054794,120]
[321191853,1711965045249,-500.0,0.00054794,120]
[321191854,1711965045259,-1000.0,0.00054794,120]
[321191855,1711965045270,-500.0,0.00054794,120]
[321191856,1711965045281,-501.46703523,0.00054794,120]
[321191857,1711965045290,-389.68149044,0.00054794,120]
[321191858,1711965045302,-500.0,0.00054794,120]
[321191859,1711965045312,-507.21968514,0.00054794,120]
[321191860,1711965045322,-503.4201783,0.00054794,120]
[321191861,1711965045332,-504.20169619,0.00054794,120]
[321191862,1711965045343,-500.0,0.00054794,120]
[321191863,1711965045352,-500.0,0.00054794,120]
[321191864,1711965045362,-502.8910961,0.00054794,120]
[321191865,1711965045371,-500.0,0.00054794,120]
[321191866,1711965045380,-592.84,0.00054794,120]
[321191867,1711965045390,-500.0,0.00054794,120]
[321191868,1711965045399,-500.0,0.00054794,120]
[321191869,1711965045409,-500.0,0.00054794,120]
[321191870,1711965045418,-500.0,0.00054794,120]
[321191871,1711965045428,-500.0,0.00054794,120]
[321191872,1711965045441,-500.0,0.00054794,120]
[321191873,1711965045451,-500.0,0.00054794,120]
[321191874,1711965045461,-500.0,0.00054794,120]
[321191875,1711965045471,-500.0,0.00054794,120]
[321191876,1711965045480,-503.48509506,0.00054794,120]
[321191877,1711965045490,-500.0,0.00054794,120]
[321191878,1711965045499,-505.71830044,0.00054794,120]
[321191879,1711965045509,-505.22057674,0.00054794,120]
[321191880,1711965045518,-236.69007711,0.00054794,120]
[321191881,1711965045527,-500.0,0.00054794,120]
[321191882,1711965045537,-500.0,0.00054794,120]
[321191883,1711965045546,-500.0,0.00054794,120]
[321191884,1711965045555,-500.0,0.00054794,120]
[321191885,1711965045564,-500.8773165,0.00054794,120]
[321191886,1711965045574,-500.0,0.00054794,120]
[321191887,1711965045584,-500.0,0.00054794,120]
[321191888,1711965045593,-500.0,0.00054794,120]
[321191889,1711965045602,-510.66,0.00054794,120]
[321191890,1711965045611,-500.0,0.00054794,120]
[321191891,1711965045621,-500.0,0.00054794,120]
[321191892,1711965045630,-500.0,0.00054794,120]
[321191893,1711965045640,-500.0,0.00054794,120]
[321191894,1711965045649,-500.0,0.00054794,120]
[321191895,1711965045658,-500.0,0.00054794,120]
[321191896,1711965045667,-500.0,0.00054794,120]
[321191897,1711965045676,-500.0,0.00054794,120]
[321191898,1711965045688,-504.36130204,0.00054794,120]
[321191899,1711965045697,-500.0,0.00054794,120]
[321191900,1711965045706,-500.0,0.00054794,120]
[321191901,1711965045716,-500.0,0.00054794,120]
[321191902,1711965045725,-182.16201001,0.00054794,120]
[321191903,1711965045734,-501.65439338,0.00054794,120]
[321191904,1711965045743,-503.9675099,0.00054794,120]
[321191905,1711965045752,-361.96036281,0.00054794,120]
[321191906,1711965045762,-500.0,0.00054794,120]
[321191907,1711965045772,-500.0,0.00054794,120]
[321191908,1711965045781,-508.51511681,0.00054794,120]
[321191909,1711965045791,-500.0,0.00054794,120]
[321191910,1711965045801,-500.0,0.00054794,120]
[321191912,1711965045810,-500.0,0.00054794,120]
[321191914,1711965045819,-607.1289143,0.00054794,120]
[321191915,1711965045828,-500.0,0.00054794,120]
[321191917,1711965045838,-500.0,0.00054794,120]
[321191919,1711965045848,-565.05949,0.00054794,120]
[321191921,1711965045857,-500.0,0.00054794,120]
[321191922,1711965045866,-500.0,0.00054794,120]
[321191923,1711965045876,-500.0,0.00054794,120]
[321191925,1711965045886,-505.08616912,0.00054794,120]
[321191927,1711965045895,-501.49598653,0.00054794,120]
[321191928,1711965045905,-500.0,0.00054794,120]
[321191930,1711965045914,-500.0,0.00054794,120]
[321191932,1711965045925,-500.91666116,0.00054794,120]
[321191933,1711965045937,-503.15079781,0.00054794,120]
[321191934,1711965045947,-603.07458103,0.00054794,120]
[321191935,1711965045957,-500.0,0.00054794,120]
[321191936,1711965045967,-500.0,0.00054794,120]
[321191937,1711965045976,-500.0,0.00054794,120]
[321191938,1711965045986,-504.49196936,0.00054794,120]
[321191939,1711965045996,-509.90253991,0.00054794,120]
[321191940,1711965046007,-500.0,0.00054794,120]
[321191941,1711965046017,-757.36,0.00054794,120]
[321191942,1711965046026,-500.0,0.00054794,120]
[321191943,1711965046036,-500.0,0.00054794,120]
[321191944,1711965046047,-500.0,0.00054794,120]
[321191945,1711965046057,-500.0,0.00054794,120]
[321191946,1711965046067,-500.0,0.00054794,120]
[321191947,1711965046077,-507.04785013,0.00054794,120]
[321191948,1711965046087,-501.07271869,0.00054794,120]
[321191949,1711965046096,-503.5165014,0.00054794,120]
[321191950,1711965046107,-500.0,0.00054794,120]
[321191951,1711965046117,-500.0,0.00054794,120]
[321191952,1711965046126,-1300.25,0.00054794,120]
[321191953,1711965046136,-500.0,0.00054794,120]
[321191954,1711965046146,-500.0,0.00054794,120]
[321191955,1711965046155,-506.00499671,0.00054794,120]
[321191956,1711965046165,-500.0,0.00054794,120]
[321191957,1711965046176,-500.0,0.00054794,120]
[321191958,1711965046188,-500.0,0.00054794,120]
[321191959,1711965046198,-500.0,0.00054794,120]
[321191960,1711965046207,-576.90264692,0.00054794,120]
[321191961,1711965046217,-500.0,0.00054794,120]
[321191962,1711965046226,-562.97,0.00054794,120]
[321191963,1711965046236,-500.0,0.00054794,120]
[321191964,1711965046245,-500.03917753,0.00054794,120]
[321191966,1711965046254,-500.0,0.00054794,120]
[321191968,1711965046265,-565.35960409,0.00054794,120]
[321191969,1711965046275,-360.55607003,0.00054794,120]
[321191970,1711965046284,-500.0,0.00054794,120]
[321191971,1711965046293,-500.0,0.00054794,120]
[321191972,1711965046303,-500.0,0.00054794,120]
[321191973,1711965046312,-502.90384125,0.00054794,120]
[321191974,1711965046322,-500.0,0.00054794,120]
[321191975,1711965046331,-2899.42,0.00054794,90]
[321191976,1711965046340,-500.0,0.00054794,120]
[321191977,1711965046350,-500.0,0.00054794,120]
[321191978,1711965046360,-500.0,0.00054794,120]
[321191979,1711965046369,-501.83668239,0.00054794,120]
[321191980,1711965046378,-500.0,0.00054794,120]
[321191981,1711965046387,-502.81956303,0.00054794,120]
[321191982,1711965046397,-500.0,0.00054794,120]
[321191983,1711965046407,-578.2,0.00054794,21]
[321191984,1711965046416,-500.0,0.00054794,60]
[321191985,1711965046425,-500.0,0.00054794,120]
[321191986,1711965046439,-500.0,0.00054794,120]
[321191987,1711965046449,-500.0,0.00054794,120]
[321191988,1711965046459,-3000.0,0.00054794,120]
[321191989,1711965046469,-500.0,0.00054794,120]
[321191990,1711965046478,-516.62,0.00054794,120]
[321191991,1711965046488,-500.0,0.00054794,120]
[321191992,1711965046571,-499.97056821,0.00054794,120]
[321191993,1711965046580,-500.0,0.00054794,120]
[321191994,1711965046590,-984.9,0.00054794,120]
[321191995,1711965046599,-151.0,0.00054794,120]
[321191996,1711965046608,-500.0,0.00054794,120]
[321191997,1711965046617,-502.37104791,0.00054794,120]
[321191998,1711965046627,-500.0,0.00054794,120]
[321191999,1711965046636,-500.0,0.00054794,120]
[321192000,1711965046647,-503.57993341,0.00054794,120]
[321192001,1711965046656,-502.82039138,0.00054794,120]
[321192002,1711965046665,-500.0,0.00054794,120]
[321192003,1711965046675,-500.0,0.00054794,120]
[321192004,1711965046684,-500.0,0.00054794,120]
[321192005,1711965046697,-500.0,0.00054794,120]
[321192006,1711965046706,-500.0,0.00054794,120]
[321192007,1711965046715,-500.0,0.00054794,120]
[321192008,1711965046725,-500.0,0.00054794,120]
[321192009,1711965046734,-500.0,0.00054794,120]
[321192010,1711965046743,-502.59356174,0.00054794,120]
[321192011,1711965046752,-504.98810383,0.00054794,120]
[321192012,1711965046761,-415.45643435,0.00054794,120]
[321192013,1711965046770,-500.0,0.00054794,120]
[321192014,1711965046780,-2219.29,0.00054794,120]
[321192015,1711965046789,-543.59700054,0.00054794,120]
[321192016,1711965046798,-500.0,0.00054794,120]
[321192017,1711965046807,-500.0,0.00054794,120]
[321192018,1711965046817,-500.0,0.00054794,120]
[321192019,1711965046826,-500.0,0.00054794,120]
[321192020,1711965046835,-500.0,0.00054794,120]
[321192021,1711965046844,-205.64866858,0.00054794,120]
[321192022,1711965046855,-502.14284889,0.00054794,120]
[321192023,1711965046865,-500.0,0.00054794,120]
[321192024,1711965046875,-500.0,0.00054794,120]
[321192025,1711965046885,-1628.68,0.00054794,120]
[321192026,1711965046895,-500.0,0.00054794,120]
[321192027,1711965046905,-514.09183832,0.00054794,120]
[321192028,1711965046915,-550.7302986,0.00054794,120]
[321192029,1711965046925,-500.0,0.00054794,120]
[321192030,1711965046935,-369.02794362,0.00054794,120]
[321192031,1711965046949,-502.54164991,0.00054794,120]
[321192032,1711965046959,-500.0,0.00054795,120]
[321192033,1711965046970,-500.0,0.00054795,120]
[321192034,1711965046979,-500.0,0.00054795,120]
[321192035,1711965046989,-233.24759158,0.00054795,120]
[321192036,1711965046998,-490.39652304,0.00054795,120]
[321192037,1711965047008,-500.0,0.00055068,120]
[321192038,1711965047018,-505.12118078,0.00055068,120]
[321192039,1711965047027,-500.0,0.00055068,120]
[321192040,1711965047037,-500.0,0.00055068,120]
[321192041,1711965047046,-505.64132494,0.00055068,120]
[321192042,1711965047056,-460.62620002,0.00055068,120]
[321192043,1711965047065,-500.0,0.00055068,120]
[321192044,1711965047075,-500.0,0.00055068,120]
[321192045,1711965047085,-500.0,0.00055068,120]
[321192046,1711965047095,-634.99157653,0.00055068,120]
[321192047,1711965047104,-503.5678739,0.00055068,120]
[321192048,1711965047113,-500.0,0.00055068,120]
[321192049,1711965047123,-506.60491626,0.00055068,120]
[321192050,1711965047132,-510.45168293,0.00055068,120]
[321192051,1711965047140,-500.0,0.00055068,120]
[321192052,1711965047149,-590.60838628,0.00055068,120]
[321192053,1711965047158,-500.0,0.00055068,120]
[321192054,1711965047168,-500.0,0.00055068,120]
[321192055,1711965047181,-500.0,0.00055068,120]
[321192056,1711965047194,-500.0,0.00055068,120]
[321192057,1711965047203,-500.0,0.00055068,120]
[321192058,1711965047212,-500.0,0.00055068,120]
[321192059,1711965047222,-500.0,0.00055068,2]
[321192060,1711965047231,-500.0,0.00055068,120]
[321192061,1711965047241,-500.0,0.00055068,120]
[321192062,1711965047250,-500.0,0.00055068,120]
[321192063,1711965047260,-500.0,0.00055068,120]
[321192064,1711965047273,-500.0,0.00055068,120]
[321192065,1711965047282,-500.0,0.00055068,120]
[321192066,1711965047292,-500.0,0.00055068,120]
[321192067,1711965047301,-502.89076185,0.00055068,120]
[321192068,1711965047311,-234.09732646,0.00055068,120]
[321192069,1711965047321,-583.48925063,0.00055068,120]
[321192070,1711965047330,-500.0,0.00055068,120]
[321192071,1711965047340,-500.0,0.00055068,120]
[321192072,1711965047349,-500.0,0.00055068,120]
[321192073,1711965047359,-500.29444335,0.00055068,120]
[321192074,1711965047368,-505.33262517,0.00055068,120]
[321192075,1711965047378,-592.84,0.00055068,120]
[321192076,1711965047388,-500.0,0.00055068,120]
[321192077,1711965047398,-500.0,0.00055068,120]
[321192078,1711965047408,-500.21780752,0.00055068,120]
[321192079,1711965047417,-500.0,0.00055068,120]
[321192080,1711965047427,-502.76037559,0.00055068,120]
[321192081,1711965047438,-500.0,0.00055068,120]
[321192082,1711965047448,-500.0,0.00055068,120]
[321192083,1711965047458,-500.0,0.00055068,120]
[321192084,1711965047467,-500.0,0.00055068,120]
[321192085,1711965047476,-250.65551281,0.00055068,120]
[321192086,1711965047486,-499.08789539,0.00055068,120]
[321192087,1711965047495,-500.0,0.00055068,120]
[321192088,1711965047505,-522.54567704,0.00055068,120]
[321192089,1711965047514,-569.74,0.00055068,120]
[321192090,1711965047524,-510.66,0.00055068,120]
[321192091,1711965047534,-507.38790705,0.00055068,120]
[321192092,1711965047543,-500.0,0.00055068,120]
[321192093,1711965047553,-500.0,0.00055068,120]
[321192094,1711965047563,-500.0,0.00055068,120]
[321192095,1711965047572,-500.0,0.00055068,120]
[321192096,1711965047583,-535.74400077,0.00055068,120]
[321192097,1711965047592,-500.0,0.00055068,120]
[321192098,1711965047602,-507.3141946,0.00055068,120]
[321192099,1711965047612,-500.0,0.00055068,120]
[321192100,1711965047621,-500.0,0.00055068,120]
[321192101,1711965047631,-500.0,0.00055068,120]
[321192102,1711965047640,-505.71500866,0.00055068,120]
[321192103,1711965047650,-500.0,0.00055068,120]
[321192104,1711965047659,-500.0,0.00055068,120]
[321192105,1711965047669,-500.0,0.00055068,120]
[321192106,1711965047678,-506.2641074,0.00055068,120]
[321192107,1711965047690,-268.62431685,0.00055068,120]
[321192108,1711965047699,-502.60377968,0.00055068,120]
[321192109,1711965047708,-500.0,0.00055068,120]
[321192110,1711965047718,-500.0,0.00055068,120]
[321192111,1711965047727,-500.0,0.00055068,120]
[321192112,1711965047736,-502.05867707,0.00055068,120]
[321192113,1711965047746,-757.36,0.00055068,120]
[321192114,1711965047755,-500.0,0.00055068,120]
[321192115,1711965047764,-500.0,0.00055068,120]
[321192116,1711965047774,-500.0,0.00055068,120]
[321192117,1711965047784,-500.0,0.00055068,120]
[321192118,1711965047794,-500.0,0.00055068,120]
[321192119,1711965047803,-500.0,0.00055068,120]
[321192120,1711965047812,-522.34788299,0.00055068,120]
[321192121,1711965047822,-1300.25,0.00055068,120]
[321192122,1711965047831,-500.0,0.00055068,120]
[321192123,1711965047840,-500.0,0.00055068,120]
[321192124,1711965047850,-500.0,0.00055068,120]
[321192125,1711965047859,-500.0,0.00055068,120]
[321192126,1711965047869,-501.89563018,0.00055068,120]
[321192127,1711965047878,-500.0,0.00055068,120]
[321192128,1711965047888,-502.71016885,0.00055068,120]
[321192129,1711965047896,-562.97,0.00055068,120]
[321192130,1711965047905,-500.0,0.00055068,120]
[321192131,1711965047914,-500.0,0.00055068,120]
[321192132,1711965047924,-503.43361203,0.00055068,120]
[321192133,1711965047933,-500.0,0.00055068,120]
[321192134,1711965047944,-500.8111204,0.00055068,120]
[321192135,1711965047953,-2899.42,0.00055068,90]
[321192136,1711965047962,-500.0,0.00055068,120]
[321192137,1711965047970,-500.0,0.00055068,120]
[321192138,1711965047980,-500.0,0.00055068,120]
[321192139,1711965047990,-611.28956012,0.00055068,120]
[321192140,1711965047999,-578.2,0.00055068,21]
[321192141,1711965048009,-500.0,0.00055068,60]
[321192142,1711965048019,-500.0,0.00055068,120]
[321192143,1711965048029,-521.06928639,0.00055068,120]
[321192144,1711965048038,-500.0,0.00055068,120]
[321192145,1711965048048,-3000.0,0.00055068,120]
[321192146,1711965048058,-500.0,0.00055068,120]
[321192147,1711965048068,-516.62,0.00055068,120]
[321192148,1711965048078,-500.0,0.00055068,120]
[321192149,1711965048087,-500.0,0.00055068,120]
[321192150,1711965048096,-151.0,0.00055068,120]
[321192151,1711965048105,-984.9,0.00055068,120]
[321192152,1711965048115,-500.0,0.00055068,120]
[321192153,1711965048124,-500.0,0.00055068,120]
[321192154,1711965048134,-500.0,0.00055068,120]
[321192155,1711965048144,-500.0,0.00055068,120]
[321192156,1711965048153,-500.0,0.00055068,120]
[321192157,1711965048163,-500.0,0.00055068,120]
[321192158,1711965048173,-500.0,0.00055068,120]
[321192159,1711965048183,-500.0,0.00055068,120]
[321192160,1711965048194,-500.0,0.00055068,120]
[321192161,1711965048203,-500.0,0.00055068,120]
[321192162,1711965048213,-500.0,0.00055068,120]
[321192163,1711965048223,-500.0,0.00055068,120]
[321192164,1711965048232,-2219.29,0.00055068,120]
[321192165,1711965048242,-500.0,0.00055068,120]
[321192166,1711965048251,-507.23295844,0.00055068,120]
[321192167,1711965048263,-500.0,0.00055068,120]
[321192168,1711965048272,-500.0,0.00055068,120]
[321192169,1711965048282,-522.23050104,0.00055068,120]
[321192170,1711965048291,-1628.68,0.00055068,120]
[321192171,1711965048300,-500.0,0.00055068,120]
[321192172,1711965048309,-500.81703805,0.00055342,120]
[321192173,1711965048318,-500.0,0.00055342,120]
[321192174,1711965048327,-351.95415612,0.00055342,120]
[321192175,1711965048336,-500.0,0.00055342,120]
[321192176,1711965048345,-500.43631071,0.00055342,120]
[321192177,1711965048355,-508.34713992,0.00055342,120]
[321192178,1711965048364,-335.22649085,0.00055342,120]
[321192179,1711965048373,-500.0,0.00055342,120]
[321192180,1711965048382,-500.0,0.00055342,120]
[321192181,1711965048391,-524.1724345,0.00055342,120]
[321192182,1711965048400,-500.0,0.00055342,120]
[321192183,1711965048409,-434.2497523,0.00055342,120]
[321192184,1711965048419,-500.0,0.00055342,120]
[321192185,1711965048428,-500.0,0.00055342,2]
[321192186,1711965048438,-637.34456783,0.00055342,120]
[321192187,1711965048447,-500.0,0.00055342,120]
[321192188,1711965048523,-509.67684277,0.00055342,120]
[321192189,1711965048532,-501.91472588,0.00055342,120]
[321192190,1711965048541,-504.09231834,0.00055342,120]
[321192191,1711965048550,-500.0,0.00055342,120]
[321192192,1711965048560,-500.30267297,0.00055342,120]
[321192193,1711965048569,-500.0,0.00055342,120]
[321192194,1711965048578,-500.0,0.00055342,120]
[321192195,1711965048587,-592.84,0.00055342,120]
[321192196,1711965048597,-500.0,0.00055342,120]
[321192197,1711965048606,-500.0,0.00055342,120]
[321192198,1711965048615,-500.0,0.00055342,120]
[321192199,1711965048624,-500.0,0.00055342,120]
[321192200,1711965048634,-500.0,0.00055342,120]
[321192201,1711965048643,-500.0,0.00055342,120]
[321192202,1711965048652,-510.66,0.00055342,120]
[321192203,1711965048661,-500.0,0.00055342,120]
[321192204,1711965048671,-500.0,0.00055342,120]
[321192205,1711965048679,-500.0,0.00055342,120]
[321192206,1711965048690,-500.0,0.00055342,120]
[321192207,1711965048700,-500.0,0.00055342,120]
[321192208,1711965048709,-509.39565054,0.00055342,120]
[321192209,1711965048718,-505.76974549,0.00055342,120]
[321192210,1711965048727,-500.0,0.00055342,120]
[321192211,1711965048736,-500.0,0.00055342,120]
[321192212,1711965048745,-500.0,0.00055342,120]
[321192213,1711965048754,-500.0,0.00055342,120]
[321192214,1711965048763,-407.70023895,0.00055342,120]
[321192215,1711965048773,-516.69815647,0.00055342,120]
[321192216,1711965048782,-500.0,0.00055342,120]
[321192217,1711965048791,-757.36,0.00055342,120]
[321192218,1711965048800,-500.0,0.00055342,120]
[321192219,1711965048809,-500.0,0.00055342,120]
[321192220,1711965048817,-500.0,0.00055342,120]
[321192221,1711965048826,-500.0,0.00055342,120]
[321192222,1711965048836,-500.0,0.00055342,120]
[321192223,1711965048845,-500.0,0.00055342,120]
[321192224,1711965048854,-1300.25,0.00055342,120]
[321192225,1711965048863,-500.0,0.00055342,120]
[321192226,1711965048872,-500.0,0.00055342,120]
[321192227,1711965048881,-500.0,0.00055342,120]
[321192228,1711965048890,-500.0,0.00055342,120]
[321192229,1711965048900,-562.97,0.00055342,120]
[321192230,1711965048909,-306.15624909,0.00055342,120]
[321192231,1711965048919,-342.43945862,0.00055342,120]
[321192232,1711965048929,-2899.42,0.00055342,90]
[321192233,1711965048942,-642.65062284,0.00055342,120]
[321192234,1711965048951,-500.0,0.00055342,120]
[321192235,1711965048962,-578.2,0.00055342,21]
[321192236,1711965048971,-629.37,0.00055342,60]
[321192237,1711965048981,-500.0,0.00055342,120]
[321192238,1711965048991,-500.56366332,0.00055342,120]
[321192239,1711965049000,-3000.0,0.00055342,120]
[321192240,1711965049010,-500.0,0.00055342,120]
[321192241,1711965049019,-516.62,0.00055342,120]
[321192242,1711965049028,-500.0,0.00055342,120]
[321192243,1711965049037,-500.0,0.00055342,120]
[321192244,1711965049046,-151.0,0.00055342,120]
[321192245,1711965049056,-984.9,0.00055342,120]
[321192246,1711965049064,-500.0,0.00055342,120]
[321192247,1711965049074,-500.0,0.00055342,120]
[321192248,1711965049083,-500.0,0.00055342,120]
[321192249,1711965049092,-500.0,0.00055342,120]
[321192250,1711965049101,-500.0,0.00055342,120]
[321192251,1711965049111,-500.0,0.00055342,120]
[321192252,1711965049120,-500.0,0.00055342,120]
[321192253,1711965049129,-500.0,0.00055342,120]